fUSD/lending_fUSD_20251103
["ID","MTS","AMOUNT","RATE_DAILY","PERIOD"]
[392991257,1762203047050,-1000.0,0.00036831,7]
[392991258,1762203047063,-196.31414597,0.00036835,2]
[392991259,1762203047072,-680.38147136,0.00036841,7]
[392991260,1762203047081,-1425.0,0.00036842,2]
[392991261,1762203047090,-1425.0,0.00036842,2]
[392991262,1762203047100,-1118.62634648,0.00036842,2]
[392991263,1762203047109,-958.43501829,0.00036854,2]
[392991264,1762203047118,-196.31414597,0.0003686,2]
[392991265,1762203047127,-4004.12515087,0.00036861,7]
[392991266,1762203047137,-1425.0,0.00036862,2]
[392991267,1762203047146,-196.31414597,0.00036886,2]
[392991268,1762203047155,-18003.0401275,0.00036888,4]
[392991269,1762203047163,-490.8726,0.00036888,7]
[392991270,1762203047173,-208.0,0.0003689,30]
[392991271,1762203047182,-28739.5559147,0.00036897,4]
[392991272,1762203047191,-1425.0,0.00036904,2]
[392991273,1762203047199,-1000.0,0.00036908,30]
[392991274,1762203047208,-1000.0,0.00036908,30]
[392991275,1762203047218,-13911.82153829,0.0003691,2]
[392991276,1762203047228,-196.31414597,0.00036911,2]
[392991277,1762203047237,-18003.0401275,0.00036915,4]
[392991278,1762203047246,-151.0,0.00036917,14]
[392991279,1762203047255,-1000.06998571,0.0003692,7]
[392991280,1762203047264,-56980.73361577,0.00036925,25]
[392991281,1762203047273,-28739.5559147,0.00036925,4]
[392991282,1762203047282,-364.76494327,0.00036925,2]
[392991283,1762203047291,-18003.0401275,0.00036926,4]
[392991284,1762203047300,-1999.98,0.00036927,2]
[392991285,1762203047309,-18003.0401275,0.00036931,4]
[392991286,1762203047318,-1430.0,0.00036932,30]
[392991287,1762203047327,-1999.99,0.00036932,2]
[392991288,1762203047336,-198.54,0.00036933,2]
[392991289,1762203047345,-1999.99,0.00036935,2]
[392991290,1762203047355,-28739.5559147,0.00036936,4]
[392991291,1762203047364,-36006.0802549,0.00036936,4]
[392991292,1762203047373,-196.31414597,0.00036936,2]
[392991293,1762203047382,-1425.0,0.00036936,2]
[392991294,1762203047392,-616.11772778,0.00036937,2]
[392991295,1762203047402,-28739.5559147,0.00036941,4]
[392991296,1762203047411,-153.0,0.00036944,90]
[392991297,1762203047421,-153.0,0.00036944,90]
[392991298,1762203047431,-956.9,0.00036945,120]
[392991299,1762203047440,-57479.1118294,0.00036946,4]
[392991300,1762203047450,-54009.1203824,0.00036946,4]
[392991301,1762203047463,-542.952073,0.00036946,31]
[392991302,1762203047475,-542.952073,0.00036946,31]
[392991303,1762203047484,-542.952073,0.00036946,31]
[392991304,1762203047493,-151.0,0.00036946,31]
[392991305,1762203047502,-542.952073,0.00036946,31]
[392991306,1762203047512,-151.0,0.00036946,31]
[392991307,1762203047522,-151.0,0.00036946,31]
[392991308,1762203047531,-151.0,0.00036946,31]
[392991309,1762203047541,-479.965111,0.00036946,31]
[392991310,1762203047550,-479.965111,0.00036946,31]
[392991311,1762203047560,-156.069111,0.00036946,31]
[392991312,1762203047569,-479.965111,0.00036946,31]
[392991313,1762203047578,-151.0,0.00036946,31]
[392991314,1762203047588,-152.452258,0.00036946,31]
[392991315,1762203047597,-479.965111,0.00036946,31]
[392991316,1762203047607,-219.175191,0.00036946,31]
[392991317,1762203047615,-151.0,0.00036946,31]
[392991318,1762203047625,-151.0,0.00036946,31]
[392991319,1762203047634,-151.0,0.00036946,31]
[392991320,1762203047644,-151.0,0.00036946,31]
[392991321,1762203047654,-151.0,0.00036946,31]
[392991322,1762203047663,-151.0,0.00036946,31]
[392991323,1762203047672,-151.0,0.00036946,31]
[392991324,1762203047682,-18003.0401275,0.00036946,4]
[392991325,1762203047691,-500.0,0.00036948,30]
[392991326,1762203047702,-500.0,0.00036948,30]
[392991327,1762203047712,-500.0,0.00036948,30]
[392991328,1762203047722,-500.0,0.00036948,30]
[392991329,1762203047732,-500.0,0.00036948,30]
[392991330,1762203047741,-153.0,0.00036949,90]
[392991331,1762203047751,-616.11772776,0.00036949,2]
[392991332,1762203047761,-153.0,0.00036949,90]
[392991333,1762203047771,-153.0,0.00036949,90]
[392991334,1762203047780,-160.5498625,0.0003695,120]
[392991335,1762203047789,-1000.0,0.00036951,7]
[392991336,1762203047799,-1999.99,0.00036952,2]
[392991337,1762203047809,-102190.9270202,0.00036956,2]
[392991338,1762203047818,-151.0,0.00036956,31]
[392991339,1762203047828,-151.0,0.00036956,31]
[392991340,1762203047837,-151.0,0.00036956,31]
[392991341,1762203047847,-151.0,0.00036956,31]
[392991342,1762203047855,-151.0,0.00036956,31]
[392991343,1762203047865,-211.065204,0.00036956,31]
[392991344,1762203047875,-151.0,0.00036956,31]
[392991345,1762203047885,-207.530291,0.00036956,31]
[392991346,1762203047894,-155.204405,0.00036956,31]
[392991347,1762203047903,-151.0,0.00036956,31]
[392991348,1762203047912,-151.0,0.00036956,31]
[392991349,1762203047922,-151.0,0.00036956,31]
[392991350,1762203047931,-179.391308,0.00036956,31]
[392991351,1762203047941,-151.0,0.00036956,31]
[392991352,1762203047950,-151.0,0.00036956,31]
[392991353,1762203047960,-179.391308,0.00036956,31]
[392991354,1762203047969,-151.0,0.00036956,31]
[392991355,1762203047978,-179.391308,0.00036956,31]
[392991356,1762203047988,-151.0,0.00036956,31]
[392991357,1762203047997,-179.391308,0.00036956,31]
[392991358,1762203048007,-151.0,0.00036956,31]
[392991359,1762203048017,-151.0,0.00036956,31]
[392991360,1762203048027,-151.0,0.00036956,31]
[392991361,1762203048036,-151.0,0.00036956,31]
[392991362,1762203048046,-213.260896,0.00036956,31]
[392991363,1762203048056,-151.0,0.00036956,31]
[392991364,1762203048068,-151.0,0.00036956,31]
[392991365,1762203048078,-313.40146,0.00036956,31]
[392991366,1762203048087,-151.0,0.00036956,31]
[392991367,1762203048097,-151.0,0.00036956,31]
[392991368,1762203048107,-151.0,0.00036956,31]
[392991369,1762203048116,-151.0,0.00036956,31]
[392991370,1762203048126,-151.0,0.00036956,31]
[392991371,1762203048135,-313.40146,0.00036956,31]
[392991372,1762203048145,-156.612198,0.00036956,31]
[392991373,1762203048154,-151.0,0.00036956,31]
[392991374,1762203048163,-152.093355,0.00036956,31]
[392991375,1762203048173,-151.0,0.00036956,31]
[392991376,1762203048182,-313.40146,0.00036956,31]
[392991377,1762203048191,-151.0,0.00036956,31]
[392991378,1762203048200,-296.218888,0.00036956,31]
[392991379,1762203048210,-313.40146,0.00036956,31]
[392991380,1762203048219,-151.0,0.00036956,31]
[392991381,1762203048228,-152.536636,0.00036956,31]
[392991382,1762203048237,-151.0,0.00036956,31]
[392991383,1762203048246,-151.0,0.00036956,31]
[392991384,1762203048255,-151.0,0.00036956,31]
[392991385,1762203048268,-151.0,0.00036956,31]
[392991386,1762203048277,-151.0,0.00036956,31]
[392991387,1762203048287,-286.690597,0.00036956,31]
[392991388,1762203048296,-396.039117,0.00036956,31]
[392991389,1762203048305,-151.0,0.00036956,31]
[392991390,1762203048315,-151.0,0.00036956,31]
[392991391,1762203048324,-151.0,0.00036956,31]
[392991392,1762203048333,-151.0,0.00036956,31]
[392991393,1762203048343,-151.0,0.00036956,31]
[392991394,1762203048492,-153.736114,0.00036956,31]
[392991395,1762203048502,-151.0,0.00036956,31]
[392991396,1762203048515,-151.0,0.00036956,31]
[392991397,1762203048525,-151.0,0.00036956,15]
[392991398,1762203048534,-151.0,0.00036956,31]
[392991399,1762203048543,-268.240452,0.00036956,31]
[392991400,1762203048552,-151.0,0.00036956,31]
[392991401,1762203048562,-151.0,0.00036956,31]
[392991402,1762203048572,-151.0,0.00036956,31]
[392991403,1762203048581,-151.0,0.00036956,15]
[392991404,1762203048590,-268.240452,0.00036956,31]
[392991405,1762203048599,-151.0,0.00036956,30]
[392991406,1762203048608,-396.039117,0.00036956,31]
[392991407,1762203048618,-151.0,0.00036956,31]
[392991408,1762203048627,-154.953267,0.00036956,31]
[392991409,1762203048636,-268.240452,0.00036956,31]
[392991410,1762203048645,-151.0,0.00036956,31]
[392991411,1762203048654,-268.240452,0.00036956,31]
[392991412,1762203048664,-151.0,0.00036956,31]
[392991413,1762203048673,-151.0,0.00036956,31]
[392991414,1762203048683,-213.211794,0.00036956,31]
[392991415,1762203048692,-151.0,0.00036956,31]
[392991416,1762203048701,-213.211794,0.00036956,31]
[392991417,1762203048710,-167.674188,0.00036956,31]
[392991418,1762203048719,-180.033927,0.00036956,31]
[392991419,1762203048729,-213.211794,0.00036956,31]
[392991420,1762203048738,-151.0,0.00036956,31]
[392991421,1762203048748,-213.211794,0.00036956,31]
[392991422,1762203048760,-258.674357,0.00036956,31]
[392991423,1762203048769,-231.946973,0.00036956,31]
[392991424,1762203048778,-258.674357,0.00036956,31]
[392991425,1762203048787,-231.946973,0.00036956,31]
[392991426,1762203048797,-258.674357,0.00036956,31]
[392991427,1762203048806,-231.946973,0.00036956,31]
[392991428,1762203048816,-216.563553,0.00036956,31]
[392991429,1762203048825,-258.674357,0.00036956,31]
[392991430,1762203048835,-231.946973,0.00036956,31]
[392991431,1762203048843,-216.563553,0.00036956,31]
[392991432,1762203048852,-216.563553,0.00036956,31]
[392991433,1762203048862,-190.614927,0.00036956,31]
[392991434,1762203048871,-241.850193,0.00036956,31]
[392991435,1762203048880,-216.563553,0.00036956,31]
[392991436,1762203048889,-190.614927,0.00036956,31]
[392991437,1762203048899,-151.0,0.00036956,30]
[392991438,1762203048908,-190.614927,0.00036956,31]
[392991439,1762203048917,-151.0,0.00036956,31]
[392991440,1762203048927,-151.0,0.00036956,31]
[392991441,1762203048937,-190.614927,0.00036956,31]
[392991442,1762203048946,-212.011823,0.00036956,31]
[392991443,1762203048955,-212.011823,0.00036956,31]
[392991444,1762203048964,-212.011823,0.00036956,31]
[392991445,1762203048974,-212.011823,0.00036956,31]
[392991446,1762203048983,-151.0,0.00036956,31]
[392991447,1762203048992,-151.0,0.00036956,31]
[392991448,1762203049001,-151.0,0.00036956,31]
[392991449,1762203049012,-151.0,0.00036956,31]
[392991450,1762203049021,-151.0,0.00036956,31]
[392991451,1762203049031,-151.0,0.00036956,31]
[392991452,1762203049040,-151.0,0.00036956,31]
[392991453,1762203049050,-151.0,0.00036956,31]
[392991454,1762203049062,-151.0,0.00036956,31]
[392991455,1762203049072,-151.0,0.00036956,31]
[392991456,1762203049085,-556.528831,0.00036956,31]
[392991457,1762203049094,-556.528831,0.00036956,31]
[392991458,1762203049103,-151.0,0.00036956,31]
[392991459,1762203049112,-556.528831,0.00036956,31]
[392991460,1762203049122,-151.0,0.00036956,31]
[392991461,1762203049131,-556.528831,0.00036956,31]
[392991462,1762203049142,-151.0,0.00036956,31]
[392991463,1762203049152,-152.809766,0.00036956,31]
[392991464,1762203049162,-151.0,0.00036956,31]
[392991465,1762203049171,-157.601264,0.00036956,10]
[392991466,1762203049180,-157.601264,0.00036956,10]
[392991467,1762203049189,-151.0,0.00036956,31]
[392991468,1762203049198,-1575.98719,0.00036956,31]
[392991469,1762203049209,-1575.98719,0.00036956,31]
[392991470,1762203049218,-157.601264,0.00036956,10]
[392991471,1762203049227,-894.979452,0.00036956,30]
[392991472,1762203049236,-284.771448,0.00036956,31]
[392991473,1762203049246,-1575.98719,0.00036956,31]
[392991474,1762203049255,-894.979452,0.00036956,30]
[392991475,1762203049267,-157.601264,0.00036956,10]
[392991476,1762203049276,-396.039117,0.00036956,31]
[392991477,1762203049286,-151.0,0.00036956,31]
[392991478,1762203049295,-1575.98719,0.00036956,31]
[392991479,1762203049304,-894.979452,0.00036956,30]
[392991480,1762203049313,-396.039117,0.00036956,31]
[392991481,1762203049323,-151.0,0.00036956,31]
[392991482,1762203049332,-151.0,0.00036956,31]
[392991483,1762203049344,-894.979452,0.00036956,30]
[392991484,1762203049354,-151.0,0.00036956,31]
[392991485,1762203049364,-151.0,0.00036956,31]
[392991486,1762203049374,-156.454501,0.00036956,31]
[392991487,1762203049383,-151.0,0.00036956,31]
[392991488,1762203049392,-151.0,0.00036956,31]
[392991489,1762203049401,-151.0,0.00036956,31]
[392991490,1762203049411,-151.0,0.00036956,31]
[392991491,1762203049420,-151.0,0.00036956,31]
[392991492,1762203049429,-151.0,0.00036956,31]
[392991493,1762203049438,-151.0,0.00036956,31]
[392991494,1762203049447,-239.431653,0.00036956,31]
[392991495,1762203049456,-239.431653,0.00036956,31]
[392991496,1762203049465,-239.431653,0.00036956,31]
[392991497,1762203049476,-239.431653,0.00036956,31]
[392991498,1762203049485,-151.0,0.00036956,31]
[392991499,1762203049494,-227.957872,0.00036956,31]
[392991500,1762203049503,-227.957872,0.00036956,31]
[392991501,1762203049514,-227.957872,0.00036956,31]
[392991502,1762203049523,-227.957872,0.00036956,31]
[392991503,1762203049532,-151.0,0.00036956,31]
[392991504,1762203049541,-151.0,0.00036956,31]
[392991505,1762203049551,-151.0,0.00036956,31]
[392991506,1762203049560,-151.0,0.00036956,15]
[392991507,1762203049570,-151.0,0.00036956,15]
[392991508,1762203049579,-151.0,0.00036956,31]
[392991509,1762203049588,-151.0,0.00036956,31]
[392991510,1762203049597,-151.0,0.00036956,31]
[392991511,1762203049606,-261.370454,0.00036956,15]
[392991512,1762203049618,-151.0,0.00036956,31]
[392991513,1762203049628,-151.0,0.00036956,31]
[392991514,1762203049637,-151.0,0.00036956,31]
[392991515,1762203049646,-151.0,0.00036956,31]
[392991516,1762203049655,-151.0,0.00036956,31]
[392991517,1762203049663,-151.0,0.00036956,31]
[392991518,1762203049672,-154.307312,0.00036956,31]
[392991519,1762203049681,-151.0,0.00036956,31]
[392991520,1762203049690,-151.0,0.00036956,31]
[392991521,1762203049699,-151.0,0.00036956,31]
[392991522,1762203049708,-151.0,0.00036956,31]
[392991523,1762203049717,-151.0,0.00036956,31]
[392991524,1762203049726,-151.0,0.00036956,31]
[392991525,1762203049736,-151.0,0.00036956,31]
[392991526,1762203049745,-151.0,0.00036956,31]
[392991527,1762203049754,-28739.5559147,0.00036957,4]
[392991528,1762203049765,-18003.0401275,0.00036957,4]
[392991529,1762203049774,-151.0,0.00036958,14]
[392991530,1762203049784,-161.51475,0.0003696,2]
[392991531,1762203049793,-201.89325,0.0003696,2]
[392991532,1762203049802,-165.01181061,0.00036961,15]
[392991533,1762203049815,-616.11772776,0.00036961,2]
[392991534,1762203049830,-196.31414597,0.00036961,2]
[392991535,1762203049839,-1118.62634648,0.00036961,2]
[392991536,1762203049849,-4422.65409782,0.00036961,2]
[392991537,1762203049858,-581.54185421,0.00036961,7]
[392991538,1762203049867,-4038.02231654,0.00036961,2]
[392991539,1762203049877,-153.68323784,0.00036961,30]
[392991540,1762203049886,-153.68323784,0.00036961,30]
[392991541,1762203049897,-153.68323784,0.00036961,30]
[392991542,1762203049906,-153.68323784,0.00036961,30]
[392991543,1762203049915,-153.68323784,0.00036961,30]
[392991544,1762203049924,-153.68323784,0.00036961,30]
[392991545,1762203049933,-153.68323784,0.00036961,30]
[392991546,1762203049942,-153.68323784,0.00036961,30]
[392991547,1762203049951,-153.68323784,0.00036961,30]
[392991548,1762203049960,-153.68323784,0.00036961,30]
[392991549,1762203049969,-153.68323784,0.00036961,30]
[392991550,1762203049978,-153.68323784,0.00036961,30]
[392991551,1762203049987,-153.68323784,0.00036961,30]
[392991552,1762203049996,-153.68323784,0.00036961,30]
[392991553,1762203050006,-153.68323784,0.00036961,30]
[392991554,1762203050017,-153.68323784,0.00036961,30]
[392991555,1762203050027,-153.68323784,0.00036961,30]
[392991556,1762203050036,-153.68323784,0.00036961,30]
[392991557,1762203050044,-153.68,0.00036961,30]
[392991558,1762203050054,-340.66451054,0.00036961,30]
[392991559,1762203050067,-340.66451054,0.00036961,30]
[392991560,1762203050078,-340.66451054,0.00036961,30]
[392991561,1762203050087,-340.66451054,0.00036961,30]
[392991562,1762203050096,-340.66451054,0.00036961,30]
[392991563,1762203050106,-340.66451054,0.00036961,30]
[392991564,1762203050115,-340.66451054,0.00036961,30]
[392991565,1762203050124,-340.66451054,0.00036961,30]
[392991566,1762203050132,-340.66451054,0.00036961,30]
[392991567,1762203050143,-340.66451054,0.00036961,30]
[392991568,1762203050152,-340.66451054,0.00036961,30]
[392991569,1762203050161,-340.66451054,0.00036961,30]
[392991570,1762203050170,-340.66451054,0.00036961,30]
[392991571,1762203050180,-340.66451054,0.00036961,30]
[392991572,1762203050188,-340.66451054,0.00036961,30]
[392991573,1762203050198,-340.66451054,0.00036961,30]
[392991574,1762203050207,-340.66451054,0.00036961,30]
[392991575,1762203050216,-340.66451054,0.00036961,30]
[392991576,1762203050225,-340.66451054,0.00036961,30]
[392991577,1762203050234,-340.66,0.00036961,30]
[392991578,1762203050243,-238.99551242,0.00036961,30]
[392991579,1762203050252,-238.99551242,0.00036961,30]
[392991580,1762203050261,-238.99551242,0.00036961,30]
[392991581,1762203050270,-238.99551242,0.00036961,30]
[392991582,1762203050280,-238.99551242,0.00036961,30]
[392991583,1762203050289,-238.99551242,0.00036961,30]
[392991584,1762203050298,-238.99551242,0.00036961,30]
[392991585,1762203050308,-238.99551242,0.00036961,30]
[392991586,1762203050317,-238.99551242,0.00036961,30]
[392991587,1762203050326,-238.99551242,0.00036961,30]
[392991588,1762203050335,-238.99551242,0.00036961,30]
[392991589,1762203050345,-238.99551242,0.00036961,30]
[392991590,1762203050355,-238.99551242,0.00036961,30]
[392991591,1762203050364,-238.99551242,0.00036961,30]
[392991592,1762203050373,-238.99551242,0.00036961,30]
[392991593,1762203050383,-238.99551242,0.00036961,30]
[392991594,1762203050392,-238.99551242,0.00036961,30]
[392991595,1762203050401,-238.99551242,0.00036961,30]
[392991596,1762203050410,-238.99551242,0.00036961,30]
[392991597,1762203050420,-238.99,0.00036961,30]
[392991598,1762203050429,-557.65619565,0.00036961,30]
[392991599,1762203050438,-557.65619565,0.00036961,30]
[392991600,1762203050447,-557.65619565,0.00036961,30]
[392991601,1762203050456,-557.65619565,0.00036961,30]
[392991602,1762203050466,-557.65619565,0.00036961,30]
[392991603,1762203050475,-557.65619565,0.00036961,30]
[392991604,1762203050484,-557.65619565,0.00036961,30]
[392991605,1762203050627,-557.65619565,0.00036961,30]
[392991606,1762203050636,-557.65619565,0.00036961,30]
[392991607,1762203050645,-557.65619565,0.00036961,30]
[392991608,1762203050655,-557.65619565,0.00036961,30]
[392991609,1762203050664,-557.65619565,0.00036961,30]
[392991610,1762203050673,-557.65619565,0.00036961,30]
[392991611,1762203050682,-557.65619565,0.00036961,30]
[392991612,1762203050691,-557.65619565,0.00036961,30]
[392991613,1762203050701,-557.65619565,0.00036961,30]
[392991614,1762203050710,-557.65619565,0.00036961,30]
[392991615,1762203050719,-557.65619565,0.00036961,30]
[392991616,1762203050728,-557.65619565,0.00036961,30]
[392991617,1762203050737,-557.65,0.00036961,30]
[392991618,1762203050747,-248.09600003,0.00036966,120]
[392991619,1762203050755,-28739.5559147,0.00036967,4]
[392991620,1762203050765,-153.0,0.0003697,90]
[392991621,1762203050774,-253.88091422,0.0003697,82]
[392991622,1762203050784,-18003.0401275,0.0003697,4]
[392991623,1762203050793,-2000.0,0.00036973,120]
[392991624,1762203050802,-1865.45,0.00036974,2]
[392991625,1762203050815,-18003.0401275,0.00036977,4]
[392991626,1762203050825,-1000.0,0.0003698,7]
[392991627,1762203050836,-28739.5559147,0.0003698,4]
[392991628,1762203050846,-2000.02,0.0003698,2]
[392991629,1762203050855,-956.9,0.00036983,120]
[392991630,1762203050864,-999.0,0.00036983,120]
[392991631,1762203050874,-18003.0401275,0.00036984,4]
[392991632,1762203050883,-18003.0401275,0.00036985,4]
[392991633,1762203050892,-1999.98,0.00036986,2]
[392991634,1762203050902,-28739.5559147,0.00036987,4]
[392991635,1762203050911,-36006.0802549,0.00036987,4]
[392991636,1762203050921,-1000.0,0.0003699,7]
[392991637,1762203050932,-542.952073,0.00036994,31]
[392991638,1762203050942,-542.952073,0.00036994,31]
[392991639,1762203050951,-542.952073,0.00036994,31]
[392991640,1762203050960,-171.616614,0.00036994,31]
[392991641,1762203050969,-542.952073,0.00036994,31]
[392991642,1762203050978,-155.707145,0.00036994,31]
[392991643,1762203050987,-157.792133,0.00036994,31]
[392991644,1762203050996,-479.965111,0.00036994,31]
[392991645,1762203051006,-479.965111,0.00036994,31]
[392991646,1762203051016,-479.965111,0.00036994,31]
[392991647,1762203051026,-151.0,0.00036994,31]
[392991648,1762203051035,-479.965111,0.00036994,31]
[392991649,1762203051045,-151.0,0.00036994,31]
[392991650,1762203051055,-300.103055,0.00036994,31]
[392991651,1762203051075,-151.0,0.00036994,31]
[392991652,1762203051085,-151.0,0.00036994,31]
[392991653,1762203051094,-151.0,0.00036994,31]
[392991654,1762203051104,-151.0,0.00036994,31]
[392991655,1762203051114,-28739.5559147,0.00036994,4]
[392991656,1762203051124,-18003.0401275,0.00036994,4]
[392991657,1762203051133,-28739.5559147,0.00036994,4]
[392991658,1762203051142,-28739.5559147,0.00036996,4]
[392991659,1762203051152,-66992.24587976,0.00036997,7]
[392991660,1762203051161,-805.56197311,0.00037,30]
[392991661,1762203051170,-150.0,0.00037,60]
[392991662,1762203051179,-163.07265059,0.00037,2]
[392991663,1762203051188,-2000.0,0.00037,2]
[392991664,1762203051197,-2000.0001,0.00037,2]
[392991665,1762203051206,-215.0,0.00037,19]
[392991666,1762203051215,-3931.92076833,0.00037,7]
[392991667,1762203051224,-151.0,0.00037,31]
[392991668,1762203051233,-199.979937,0.00037,31]
[392991669,1762203051242,-151.0,0.00037,31]
[392991670,1762203051251,-151.0,0.00037,15]
[392991671,1762203051260,-151.0,0.00037,15]
[392991672,1762203051269,-151.0,0.00037,31]
[392991673,1762203051279,-151.0,0.00037,31]
[392991674,1762203051288,-152.793943,0.00037,31]
[392991675,1762203051298,-151.0,0.00037,31]
[392991676,1762203051307,-151.0,0.00037,31]
[392991677,1762203051317,-151.0,0.00037,31]
[392991678,1762203051330,-151.0,0.00037,31]
[392991679,1762203051340,-166.425213,0.00037,31]
[392991680,1762203051350,-151.0,0.00037,31]
[392991681,1762203051359,-151.0,0.00037,31]
[392991682,1762203051368,-151.0,0.00037,31]
[392991683,1762203051377,-151.0,0.00037,31]
[392991684,1762203051387,-178.086736,0.00037,31]
[392991685,1762203051396,-151.0,0.00037,31]
[392991686,1762203051406,-153.008316,0.00037,31]
[392991687,1762203051415,-18003.0401275,0.00037004,4]
[392991688,1762203051424,-151.0,0.00037004,31]
[392991689,1762203051434,-151.0,0.00037004,31]
[392991690,1762203051443,-151.0,0.00037004,31]
[392991691,1762203051453,-151.0,0.00037004,31]
[392991692,1762203051462,-151.0,0.00037004,31]
[392991693,1762203051471,-151.0,0.00037004,31]
[392991694,1762203051481,-151.0,0.00037004,31]
[392991695,1762203051491,-151.0,0.00037004,31]
[392991696,1762203051501,-179.391308,0.00037004,31]
[392991697,1762203051514,-151.0,0.00037004,31]
[392991698,1762203051523,-179.391308,0.00037004,31]
[392991699,1762203051533,-151.0,0.00037004,31]
[392991700,1762203051542,-179.391308,0.00037004,31]
[392991701,1762203051563,-151.0,0.00037004,31]
[392991702,1762203051580,-179.391308,0.00037004,31]
[392991703,1762203051598,-151.0,0.00037004,31]
[392991704,1762203051619,-151.0,0.00037004,31]
[392991705,1762203051635,-151.0,0.00037004,31]
[392991706,1762203051652,-151.0,0.00037004,31]
[392991707,1762203051670,-151.0,0.00037004,31]
[392991708,1762203051690,-313.40146,0.00037004,31]
[392991709,1762203051708,-151.0,0.00037004,31]
[392991710,1762203051725,-151.0,0.00037004,31]
[392991711,1762203051744,-151.0,0.00037004,31]
[392991712,1762203051760,-153.720104,0.00037004,31]
[392991713,1762203051776,-313.40146,0.00037004,31]
[392991714,1762203051795,-151.0,0.00037004,31]
[392991715,1762203051807,-151.0,0.00037004,31]
[392991716,1762203051824,-313.40146,0.00037004,31]
[392991717,1762203051838,-151.0,0.00037004,31]
[392991718,1762203051852,-313.40146,0.00037004,31]
[392991719,1762203051867,-151.0,0.00037004,31]
[392991720,1762203051882,-151.0,0.00037004,31]
[392991721,1762203051896,-151.0,0.00037004,31]
[392991722,1762203051920,-151.0,0.00037004,31]
[392991723,1762203051935,-151.0,0.00037004,31]
[392991724,1762203051953,-396.039117,0.00037004,31]
[392991725,1762203051966,-151.0,0.00037004,31]
[392991726,1762203051982,-151.0,0.00037004,31]
[392991727,1762203051996,-151.731434,0.00037004,31]
[392991728,1762203052011,-151.0,0.00037004,31]
[392991729,1762203052027,-151.0,0.00037004,31]
[392991730,1762203052041,-151.0,0.00037004,31]
[392991731,1762203052058,-151.0,0.00037004,15]
[392991732,1762203052074,-151.0,0.00037004,31]
[392991733,1762203052094,-268.240452,0.00037004,31]
[392991734,1762203052110,-151.0,0.00037004,31]
[392991735,1762203052125,-151.0,0.00037004,15]
[392991736,1762203052141,-180.410312,0.00037004,31]
[392991737,1762203052155,-268.240452,0.00037004,31]
[392991738,1762203052170,-151.0,0.00037004,30]
[392991739,1762203052184,-151.0,0.00037004,31]
[392991740,1762203052198,-268.240452,0.00037004,31]
[392991741,1762203052213,-163.632111,0.00037004,31]
[392991742,1762203052227,-268.240452,0.00037004,31]
[392991743,1762203052242,-396.039117,0.00037004,31]
[392991744,1762203052256,-151.0,0.00037004,31]
[392991745,1762203052274,-151.0,0.00037004,31]
[392991746,1762203052289,-213.211794,0.00037004,31]
[392991747,1762203052302,-151.0,0.00037004,31]
[392991748,1762203052317,-213.211794,0.00037004,31]
[392991749,1762203052331,-213.211794,0.00037004,31]
[392991750,1762203052345,-213.211794,0.00037004,31]
[392991751,1762203052360,-258.674357,0.00037004,31]
[392991752,1762203052375,-231.946973,0.00037004,31]
[392991753,1762203052388,-258.674357,0.00037004,31]
[392991754,1762203052403,-231.946973,0.00037004,31]
[392991755,1762203052418,-258.674357,0.00037004,31]
[392991756,1762203052433,-231.946973,0.00037004,31]